fUST/lending_fUST_20250817
["ID","MTS","AMOUNT","RATE_DAILY","PERIOD"]
[379861872,1755425652400,480.0,0.00019566,2]
[379861873,1755425654292,480.0,0.00019565,2]
[379861874,1755425655869,460.0,0.00019566,2]
[379861875,1755425656789,903.07,0.00019565,2]
[379861876,1755425660259,480.0,0.00019566,2]
[379861877,1755425662843,480.0,0.00019567,2]
[379861878,1755425662989,5004.3770095,0.0001884,2]
[379861879,1755425663747,480.0,0.00019565,2]
[379861880,1755425664694,480.0,0.00019566,2]
[379861881,1755425669158,480.0,0.00019565,2]
[379861882,1755425676755,2015.94,0.00019568,2]
[379861883,1755425679154,480.0,0.00019566,2]
[379861884,1755425679771,480.0,0.00019565,2]
[379861885,1755425680630,179.76630381,0.00017444,2]
[379861886,1755425682293,2165.11,0.00019565,2]
[379861887,1755425685591,480.0,0.00019565,2]
[379861888,1755425689378,460.0,0.00019566,2]
[379861889,1755425689899,480.0,0.00019567,2]
[379861890,1755425690076,480.0,0.00019566,2]
[379861891,1755425690920,517.91,0.00019565,2]
[379861892,1755425691009,480.0,0.00019565,2]
[379861893,1755425692251,480.0,0.00019567,2]
[379861894,1755425693950,480.0,0.00019565,2]
[379861895,1755425694085,480.0,0.00019567,2]
[379861896,1755425696580,480.0,0.00019567,2]
[379861897,1755425698291,480.0,0.00019568,2]
[379861898,1755425698366,589.12,0.00019565,2]
[379861899,1755425699413,480.0,0.00019566,2]
[379861900,1755425700427,480.0,0.00019566,2]
[379861901,1755425701182,480.0,0.00019566,2]
[379861902,1755425702854,480.0,0.00019568,2]
[379861903,1755425704576,480.0,0.00019566,2]
[379861904,1755425706667,240.58,0.0001935,2]
[379861905,1755425707646,480.0,0.00019567,2]
[379861906,1755425711055,460.32578701,0.00019566,2]
[379861907,1755425711429,1148.1,0.00019568,2]
[379861908,1755425712640,1000.0,0.00019566,2]
[379861909,1755425718366,480.0,0.00019567,2]
[379861910,1755425719629,306.142688,0.00013699,2]
[379861911,1755425720673,480.0,0.00019565,2]
[379861912,1755425720848,480.0,0.00019565,2]
[379861913,1755425725044,480.0,0.00019565,2]
[379861914,1755425726114,480.0,0.00019566,2]
[379861915,1755425727648,651.44,0.00019566,2]
[379861916,1755425731172,1612.0,0.00019565,2]
[379861917,1755425736686,480.0,0.00019566,2]
[379861918,1755425738676,480.0,0.00019566,2]
[379861919,1755425748825,500.0,0.00019566,2]
[379861920,1755425749061,500.0,0.00019566,2]
[379861921,1755425749306,500.0,0.00019567,2]
[379861922,1755425749590,500.0,0.00019567,2]
[379861923,1755425749637,480.0,0.00019566,2]
[379861924,1755425749693,480.0,0.00019566,2]
[379861925,1755425749872,500.0,0.00019568,2]
[379861926,1755425750174,500.0,0.00019569,2]
[379861927,1755425751470,150.0,0.00019567,2]
[379861928,1755425753811,460.0,0.00019565,2]
[379861929,1755425754951,480.0,0.00019566,2]
[379861930,1755425757262,480.0,0.00019566,2]
[379861931,1755425758121,480.0,0.00019565,2]
[379861932,1755425758786,340.0520622,0.0001906,2]
[379861933,1755425760979,480.0,0.00019566,2]
[379861934,1755425761380,480.0,0.00019566,2]
[379861935,1755425762118,480.0,0.00019566,2]
[379861936,1755425763070,480.0,0.00019566,2]
[379861937,1755425764549,480.0,0.00019566,2]
[379861938,1755425765882,480.0,0.00019566,2]
[379861939,1755425766280,480.0,0.00019566,2]
[379861940,1755425766762,3892.24,0.00019567,2]
[379861941,1755425768890,480.0,0.00019566,2]
[379861942,1755425768927,6177.2,0.00019566,2]
[379861943,1755425769914,480.0,0.00019566,2]
[379861944,1755425771294,480.0,0.00019566,2]
[379861945,1755425772062,5226.91,0.00019565,2]
[379861946,1755425773532,318.74984126,0.00019566,2]
[379861947,1755425780144,176.92942354,0.00019566,2]
[379861948,1755425780474,440.0,0.00019566,2]
[379861949,1755425782753,480.0,0.00019566,2]
[379861950,1755425783879,460.0,0.00019566,2]
[379861951,1755425784480,357.75805222,0.00019566,2]
[379861952,1755425789076,480.0,0.00019566,2]
[379861953,1755425789834,237.52,0.00019353,2]
[379861954,1755425790280,520.34,0.00019565,2]
[379861955,1755425791000,480.0,0.00019566,2]
[379861956,1755425791607,480.0,0.00019566,2]
[379861957,1755425793095,480.0,0.00019566,2]
[379861958,1755425795167,480.0,0.00019568,2]
[379861959,1755425796399,480.0,0.00019566,2]
[379861960,1755425797050,480.0,0.00019568,2]
[379861961,1755425801278,480.0,0.00019566,2]
[379861962,1755425802682,480.0,0.00019565,2]
[379861963,1755425803835,538.75,0.00019568,2]
[379861966,1755425807511,480.67668071,0.00019568,2]
[379861967,1755425807999,480.0,0.00019566,2]
[379861968,1755425809374,480.0,0.00019568,2]
[379861969,1755425818142,480.0,0.00019566,2]
[379861970,1755425818287,480.0,0.00019565,2]
[379861971,1755425829750,226.47093368,0.00019566,2]
[379861972,1755425833492,480.0,0.00019568,2]
[379861973,1755425835319,663.58,0.00019566,2]
[379861974,1755425835592,480.0,0.00019568,2]
[379861975,1755425837608,9858.0,0.00027763,60]
[379861976,1755425842520,166.55,0.00016541,2]
[379861977,1755425842958,480.0,0.00019565,2]
[379861978,1755425850373,480.0,0.00019565,2]
[379861979,1755425850560,480.0,0.00019566,2]
[379861980,1755425853518,40776.88666898,0.00019539,2]
[379861981,1755425855951,480.0,0.00019566,2]
[379861982,1755425857056,500.0,0.00019566,2]
[379861983,1755425857300,500.0,0.00019566,2]
[379861984,1755425857775,500.0,0.00019567,2]
[379861985,1755425857804,480.0,0.00019566,2]
[379861986,1755425857900,500.0,0.00019567,2]
[379861987,1755425862072,497.01,0.00019565,2]
[379861988,1755425863771,2024.09,0.00019568,2]
[379861989,1755425864228,480.0,0.00019565,2]
[379861990,1755425864597,480.0,0.00019566,2]
[379861991,1755425868315,504.61588804,0.00019566,2]
[379861992,1755425870026,480.0,0.00019566,2]
[379861993,1755425870389,1138.16,0.00019565,2]
[379861994,1755425870466,480.0,0.00019565,2]
[379861995,1755425870607,270.28,0.00019352,2]
[379861996,1755425873984,480.0,0.00019566,2]
[379861997,1755425875678,280.2062693,0.00019566,2]
[379861998,1755425876092,480.0,0.00019568,2]
[379861999,1755425880374,480.0,0.00019566,2]
[379862000,1755425888232,480.0,0.00019565,2]
[379862001,1755425888351,361.46542228,0.00019566,2]
[379862002,1755425889102,480.0,0.00019568,2]
[379862003,1755425890112,480.0,0.00019566,2]
[379862004,1755425890189,460.0,0.00019566,2]
[379862005,1755425890505,420.0,0.00019566,2]
[379862006,1755425895272,480.0,0.00019566,2]
[379862007,1755425898198,480.0,0.00019568,2]
[379862008,1755425900758,480.0,0.00019568,2]
[379862009,1755425903696,380.0,0.00019566,2]
[379862010,1755425909353,480.0,0.00019566,2]
[379862011,1755425909535,480.0,0.00019565,2]
[379862012,1755425913846,487.42111243,0.00019566,2]
[379862013,1755425915998,480.0,0.00019566,2]
[379862014,1755425916988,480.0,0.00019566,2]
[379862015,1755425919450,529.0,0.0001957,2]
[379862016,1755425922501,587.11,0.00019565,2]
[379862017,1755425924091,486.04200519,0.00019565,2]
[379862018,1755425927783,480.0,0.00019566,2]
[379862019,1755425931170,3895.96,0.00019566,2]
[379862020,1755425931598,480.0,0.00019567,2]
[379862021,1755425932411,480.0,0.00019568,2]
[379862022,1755425936633,1660.3,0.00019565,2]
[379862023,1755425941423,480.0,0.00019566,2]
[379862024,1755425943332,545.61,0.00019565,2]
[379862025,1755425947436,480.0,0.00019566,2]
[379862026,1755425948927,480.0,0.00019567,2]
[379862027,1755425949925,480.0,0.00019566,2]
[379862028,1755425960202,272.95,0.0001935,2]
[379862029,1755425964092,480.0,0.00019566,2]
[379862030,1755425966395,9278.9484826,0.00018809,2]
[379862031,1755425969394,625.28770547,0.0001954,2]
[379862032,1755425970142,480.0,0.00019565,2]
[379862033,1755425976141,480.0,0.00019567,2]
[379862034,1755425976739,209.63811212,0.00019566,2]
[379862035,1755425981766,298.72429519,0.00019566,2]
[379862036,1755425985618,460.0,0.00019566,2]
[379862037,1755425988210,460.0,0.00019566,2]
[379862038,1755425989929,480.0,0.00019566,2]
[379862039,1755425989959,485.3577514,0.00019565,2]
[379862040,1755425993095,480.0,0.00019566,2]
[379862041,1755425993814,442.92126181,0.00019566,2]
[379862042,1755425995976,480.0,0.00019566,2]
[379862043,1755425999123,487.57409894,0.00019565,2]
[379862044,1755426009319,460.0,0.00019566,2]
[379862045,1755426012917,480.0,0.00019566,2]
[379862046,1755426017981,1974.94348734,0.00019539,2]
[379862047,1755426018480,480.0,0.00019566,2]
[379862048,1755426018986,5594.64,0.00019565,2]
[379862049,1755426020365,480.0,0.00019565,2]
[379862050,1755426026762,454.0,0.00019566,2]
[379862051,1755426035875,480.0,0.00019566,2]
[379862052,1755426038031,500.0,0.00018986,2]
[379862053,1755426044840,269.48,0.00019267,2]
[379862054,1755426047078,545.84,0.00019565,2]
[379862055,1755426051336,1162.36,0.00019567,2]
[379862056,1755426056772,480.0,0.00019566,2]
[379862057,1755426056852,480.0,0.00019566,2]
[379862058,1755426060026,356.56131518,0.0001911,2]
[379862059,1755426061181,480.0,0.00019566,2]
[379862060,1755426062313,480.0,0.00019566,2]
[379862061,1755426063489,185.9609057,0.00018853,2]
[379862062,1755426067130,480.0,0.00019565,2]
[379862063,1755426067836,480.0,0.00019566,2]
[379862064,1755426071023,480.0,0.00019566,2]
[379862065,1755426072867,480.0,0.00019566,2]
[379862066,1755426077733,480.0,0.00019566,2]
[379862067,1755426083430,595.44421572,0.00019566,2]
[379862068,1755426086702,480.0,0.00019566,2]
[379862069,1755426088934,364.74475885,0.00019566,2]
[379862070,1755426093225,480.0,0.00019565,2]
[379862072,1755426100562,480.0,0.00019566,2]
[379862073,1755426106356,6856.14,0.00019566,2]
[379862074,1755426112873,480.0,0.00019565,2]
[379862075,1755426117841,480.0,0.00019566,2]
[379862076,1755426118038,480.0,0.00019566,2]
[379862077,1755426119904,480.0,0.00019566,2]
[379862078,1755426122043,480.0,0.00019566,2]
[379862079,1755426124539,480.0,0.00019566,2]
[379862080,1755426126003,480.0,0.00019566,2]
[379862081,1755426126988,266.05,0.00019288,2]
[379862082,1755426128479,480.0,0.00019566,2]
[379862083,1755426131170,480.0,0.00019566,2]
[379862084,1755426131972,480.0,0.00019566,2]
[379862085,1755426134081,480.0,0.00019567,2]
[379862086,1755426135968,1176.33,0.00019565,2]
[379862087,1755426145238,480.0,0.00019566,2]
[379862104,1755426152741,1519.4664091,0.00018853,2]
[379862116,1755426161155,480.0,0.00019566,2]
[379862117,1755426163550,480.0,0.00019566,2]
[379862215,1755426170356,253.59629495,0.00019566,2]
[379862217,1755426170521,786.05,0.00019566,2]
[379862433,1755426175657,661.06,0.00019565,2]
[379862444,1755426175871,655.05581888,0.0001954,2]
[379862449,1755426175966,480.0,0.00019566,2]
[379862669,1755426181196,480.0,0.00019566,2]
[379862722,1755426182443,825.66,0.00019566,2]
[379862766,1755426183820,2206.33,0.00019567,2]
[379862877,1755426186445,480.0,0.00019566,2]
[379863402,1755426200333,440.0,0.00019566,2]
[379863469,1755426201848,1644.88,0.00019566,2]
[379863476,1755426202178,480.0,0.00019566,2]
[379863647,1755426209813,480.0,0.00019567,2]
[379863648,1755426210922,284.45,0.00019288,2]
[379863649,1755426220905,480.0,0.00019566,2]
[379863650,1755426222308,480.0,0.00019566,2]
[379863651,1755426223921,480.0,0.00019565,2]
[379863652,1755426230115,480.0,0.00019566,2]
[379863653,1755426237445,480.0,0.00019566,2]
[379863654,1755426241883,4547.37,0.00019566,2]
[379863655,1755426244207,480.0,0.00019565,2]
[379863656,1755426245048,363.39387725,0.00019566,2]
[379863657,1755426254595,480.0,0.00019566,2]
[379863658,1755426256887,480.0,0.00019566,2]
[379863659,1755426265017,480.0,0.00019566,2]
[379863660,1755426271115,480.0,0.00019566,2]
[379863661,1755426275141,480.0,0.00019566,2]
[379863662,1755426281985,480.0,0.00019566,2]
[379863663,1755426293258,280.83,0.00019345,2]
[379863664,1755426304649,7405.65,0.00019565,2]
[379863665,1755426310987,480.0,0.00019566,2]
[379863666,1755426319327,480.0,0.00019566,2]
[379863667,1755426334379,482.93371222,0.00019566,2]
[379863670,1755426343776,3383.38508327,0.0001957,2]
[379863671,1755426360007,2424.04,0.00019566,2]
[379863672,1755426361450,340.9475037,0.00019383,2]
[379863674,1755426373053,480.0,0.00019566,2]
[379863675,1755426375158,326.45,0.0001935,2]
[379863676,1755426382797,794.33,0.00019565,2]
[379863677,1755426383868,480.0,0.00019566,2]
[379863680,1755426399145,588.15,0.00019566,2]
[379863681,1755426409291,480.0,0.00019566,2]
[379863682,1755426413246,480.0,0.00019566,2]
[379863683,1755426416748,480.0,0.00019566,2]
[379863684,1755426430679,464.13650722,0.00019566,2]
[379863685,1755426434412,480.0,0.00019566,2]
[379863686,1755426435094,167.71729442,0.0001957,2]
[379863687,1755426435332,421.67362539,0.00019566,2]
[379863688,1755426436259,460.0,0.00019566,2]
[379863689,1755426441424,480.0,0.00019566,2]
[379863690,1755426441896,480.0,0.00019566,2]
[379863691,1755426444601,480.0,0.00019566,2]
[379863692,1755426449827,480.0,0.00019566,2]
[379863693,1755426452147,573.17384152,0.00019539,2]
[379863694,1755426454052,245.00057867,0.00019566,2]
[379863695,1755426457641,391.06,0.0001935,2]
[379863698,1755426469381,480.0,0.00019566,2]
[379863699,1755426469622,384.74695833,0.00019566,2]
[379863700,1755426478030,340.00000001,0.00019566,2]
[379863701,1755426479264,480.0,0.00019566,2]
[379863702,1755426479612,480.0,0.00019566,2]
[379863703,1755426481505,480.0,0.00019566,2]
[379863704,1755426491287,480.0,0.00019566,2]
[379863705,1755426493707,5086.38,0.00019565,2]
[379863707,1755426498819,165.82743948,0.0001952,2]
[379863709,1755426509161,480.0,0.00019565,2]
[379863710,1755426509691,480.0,0.00019566,2]
[379863711,1755426514440,223.047874,0.00018694,2]
[379863712,1755426518780,480.0,0.00019566,2]
[379863715,1755426527576,1814.86,0.00019566,2]
[379863716,1755426538888,386.09,0.00019303,2]
[379863717,1755426539420,618.51058851,0.00019566,2]
[379863718,1755426547411,500.0,0.00018986,2]
[379863719,1755426549757,480.0,0.00019566,2]
[379863722,1755426564843,9385.83,0.00019565,2]
[379863732,1755426569636,162.92409165,0.00019566,2]
[379863733,1755426576192,666.0,0.00019178,2]
[379863735,1755426617784,893.29,0.00019565,2]
[379863736,1755426620612,480.0,0.00019566,2]
[379863737,1755426623516,381.17,0.00019299,2]
[379863781,1755426632783,-663.83006213,0.00019616,2]
[379863783,1755426632793,-454.02983164,0.0001962,2]
[379863785,1755426632802,-1182.87,0.0001963,3]
[379863787,1755426632811,-667.75,0.0001963,3]
[379863789,1755426632820,-264.0,0.00019637,2]
[379863790,1755426632833,-300.0,0.00019637,2]
[379863792,1755426632842,-92.73683653,0.00019637,2]
[379863794,1755426632854,-1053.86682041,0.00019637,2]
[379863846,1755426638577,-410.19,0.0001963,3]
[379863848,1755426638587,-53.39634306,0.00019637,2]
[379863850,1755426638597,-486.53649342,0.00019638,2]
[379863852,1755426638607,-480.0,0.00019638,2]
[379863854,1755426638616,-74.47716352,0.00019638,2]
[379863862,1755426638687,-405.52283648,0.00019638,2]
[379863864,1755426638697,-480.0,0.00019638,2]
[379863866,1755426638707,-1816.89,0.00019638,2]
[379863868,1755426638717,-480.0,0.00019638,2]
[379863870,1755426638726,-480.0,0.00019638,2]
[379863872,1755426638735,-480.0,0.00019638,2]
[379863874,1755426638744,-480.0,0.00019638,2]
[379863876,1755426638753,-461.27627205,0.00019638,2]
[379863878,1755426638762,-480.0,0.00019638,2]
[379863880,1755426638772,-480.0,0.00019638,2]
[379863882,1755426638781,-480.0,0.00019638,2]
[379863884,1755426638790,-235.01039699,0.00019638,2]
[379863887,1755426638799,-460.0,0.00019638,2]
[379863889,1755426638809,-330.24845076,0.00019638,2]
[379863891,1755426638818,-460.0,0.00019638,2]
[379863893,1755426638827,-460.0,0.00019638,2]
[379863895,1755426638837,-460.0,0.00019638,2]
[379863897,1755426638846,-480.0,0.00019638,2]
[379863899,1755426638855,-480.0,0.00019638,2]
[379863901,1755426638864,-480.0,0.00019638,2]
[379863903,1755426638874,-500.0,0.00019638,2]
[379863905,1755426638883,-500.0,0.00019638,2]
[379863907,1755426638892,-500.0,0.00019638,2]
[379863909,1755426638902,-181.63898416,0.00019638,2]
[379863911,1755426638911,-441.82135433,0.00019638,2]
[379863913,1755426638920,-304.76411721,0.00019638,2]
[379863915,1755426638929,-500.0,0.00019638,2]
[379863917,1755426638939,-500.0,0.00019638,2]
[379863919,1755426638948,-500.0,0.00019638,2]
[379863921,1755426638957,-500.0,0.00019638,2]
[379863923,1755426638967,-368.15126948,0.00019638,2]
[379863925,1755426638976,-500.0,0.00019638,2]
[379863927,1755426638985,-500.0,0.00019638,2]
[379863929,1755426638994,-500.0,0.00019638,2]
[379863930,1755426639003,-371.13631806,0.00019638,2]
[379863932,1755426639012,-500.0,0.00019638,2]
[379863934,1755426639021,-14891.16645702,0.00019638,2]
[379863936,1755426639031,-480.0,0.00019639,2]
[379863938,1755426639040,-480.0,0.00019639,2]
[379863940,1755426639049,-480.0,0.00019639,2]
[379863942,1755426639059,-480.0,0.00019639,2]
[379863944,1755426639068,-460.0,0.00019639,2]
[379863946,1755426639078,-480.0,0.00019639,2]
[379863948,1755426639087,-480.0,0.00019639,2]
[379863951,1755426639100,-480.0,0.00019639,2]
[379863953,1755426639110,-480.0,0.00019639,2]
[379863955,1755426639119,-480.0,0.00019639,2]
[379863957,1755426639128,-480.0,0.00019639,2]
[379863959,1755426639137,-480.0,0.00019639,2]
[379863961,1755426639146,-537.23,0.00019639,2]
[379863963,1755426639156,-1105.2,0.00019639,2]
[379863965,1755426639166,-480.0,0.00019639,2]
[379863967,1755426639175,-480.0,0.00019639,2]
[379863969,1755426639184,-480.0,0.00019639,2]
[379863971,1755426639193,-480.0,0.00019639,2]
[379863972,1755426639202,-480.0,0.00019639,2]
[379863975,1755426639214,-480.0,0.00019639,2]
[379863977,1755426639223,-460.0,0.00019639,2]
[379863979,1755426639232,-480.0,0.00019639,2]
[379863981,1755426639242,-480.0,0.00019639,2]
[379863983,1755426639251,-466.62826441,0.00019639,2]
[379863984,1755426639260,-534.74,0.00019639,2]
[379863986,1755426639270,-480.0,0.00019639,2]
[379863988,1755426639279,-480.0,0.00019639,2]
[379863990,1755426639289,-500.0,0.00019639,2]
[379863992,1755426639298,-500.0,0.00019639,2]
[379863994,1755426639308,-480.0,0.00019639,2]
[379863996,1755426639318,-480.0,0.00019639,2]
[379863998,1755426639328,-2520.28,0.00019639,2]
[379864001,1755426639337,-480.0,0.00019639,2]
[379864003,1755426639347,-480.0,0.00019639,2]
[379864004,1755426639357,-1171.49,0.00019639,2]
[379864007,1755426639366,-480.12399451,0.00019639,2]
[379864009,1755426639376,-480.0,0.00019639,2]
[379864011,1755426639386,-480.0,0.00019639,2]
[379864013,1755426639395,-480.0,0.00019639,2]
[379864015,1755426639406,-480.0,0.00019639,2]
[379864017,1755426639416,-480.0,0.00019639,2]
[379864019,1755426639425,-480.0,0.00019639,2]
[379864021,1755426639434,-480.0,0.00019639,2]
[379864023,1755426639443,-480.0,0.00019639,2]
[379864025,1755426639452,-480.0,0.00019639,2]
[379864027,1755426639461,-480.0,0.00019639,2]
[379864029,1755426639471,-480.0,0.00019639,2]
[379864031,1755426639480,-480.0,0.00019639,2]
[379864033,1755426639489,-480.0,0.00019639,2]
[379864035,1755426639498,-480.0,0.00019639,2]
[379864037,1755426639508,-1544.71,0.00019639,2]
[379864039,1755426639516,-480.0,0.00019639,2]
[379864041,1755426639525,-770.21,0.00019639,2]
[379864043,1755426639534,-480.0,0.00019639,2]
[379864045,1755426639543,-2433.88,0.00019639,2]
[379864047,1755426639552,-480.0,0.00019639,2]
[379864049,1755426639561,-480.0,0.00019639,2]
[379864051,1755426639570,-480.0,0.00019639,2]
[379864053,1755426639578,-480.0,0.00019639,2]
[379864055,1755426639588,-480.0,0.00019639,2]
[379864057,1755426639597,-480.0,0.00019639,2]
[379864059,1755426639606,-1364.45,0.00019639,2]
[379864061,1755426639615,-480.0,0.00019639,2]
[379864062,1755426639624,-480.0,0.00019639,2]
[379864064,1755426639633,-480.0,0.00019639,2]
[379864066,1755426639642,-480.0,0.00019639,2]
[379864068,1755426639651,-480.0,0.00019639,2]
[379864070,1755426639660,-480.0,0.00019639,2]
[379864072,1755426639669,-186.17945701,0.00019639,2]
[379864074,1755426639678,-480.0,0.00019639,2]
[379864076,1755426639687,-480.0,0.00019639,2]
[379864078,1755426639696,-480.0,0.00019639,2]
[379864080,1755426639705,-632.69,0.00019639,2]
[379864082,1755426639714,-3797.65,0.00019639,2]
[379864084,1755426639723,-480.0,0.00019639,2]
[379864086,1755426639733,-480.0,0.00019639,2]
[379864088,1755426639742,-480.0,0.00019639,2]
[379864090,1755426639751,-480.0,0.00019639,2]
[379864092,1755426639760,-480.0,0.00019639,2]
[379864094,1755426639769,-577.50173248,0.00019639,2]
[379864096,1755426639778,-480.0,0.00019639,2]
[379864098,1755426639788,-480.0,0.00019639,2]
[379864100,1755426639797,-837.64,0.00019639,2]
[379864102,1755426639806,-1213.17,0.00019639,2]
[379864104,1755426639815,-480.0,0.00019639,2]
[379864106,1755426639824,-480.0,0.00019639,2]
[379864108,1755426639834,-894.66,0.00019639,2]
[379864110,1755426639843,-2025.82,0.00019639,2]
[379864112,1755426639857,-480.0,0.00019639,2]
[379864115,1755426639868,-480.0,0.00019639,2]
[379864117,1755426639878,-480.0,0.00019639,2]
[379864119,1755426639887,-480.0,0.00019639,2]
[379864121,1755426639899,-716.1,0.00019639,2]
[379864123,1755426639908,-400.0,0.00019639,2]
[379864125,1755426639917,-480.0,0.00019639,2]
[379864127,1755426639928,-480.0,0.00019639,2]
[379864129,1755426639937,-480.0,0.00019639,2]
[379864131,1755426639947,-487.28280888,0.00019639,2]
[379864133,1755426639955,-790.13,0.00019639,2]
[379864135,1755426639964,-480.0,0.00019639,2]
[379864137,1755426639973,-480.0,0.00019639,2]
[379864139,1755426639982,-480.0,0.00019639,2]
[379864141,1755426639993,-300.0,0.00019639,2]
[379864143,1755426640002,-480.0,0.0001964,2]
[379864145,1755426640011,-464.44045046,0.0001964,2]
[379864147,1755426640020,-480.0,0.0001964,2]
[379864149,1755426640030,-480.0,0.0001964,2]
[379864151,1755426640039,-422.85466851,0.0001964,2]
[379864153,1755426640048,-480.0,0.0001964,2]
[379864155,1755426640058,-480.0,0.0001964,2]
[379864157,1755426640067,-442.406919,0.0001964,2]
[379864159,1755426640077,-460.0,0.0001964,2]
[379864161,1755426640086,-480.0,0.0001964,2]
[379864163,1755426640093,-480.0,0.0001964,2]
[379864165,1755426640102,-480.0,0.0001964,2]
[379864167,1755426640112,-480.0,0.0001964,2]
[379864168,1755426640121,-480.0,0.0001964,2]
[379864170,1755426640131,-480.0,0.0001964,2]
[379864172,1755426640141,-480.0,0.0001964,2]
[379864174,1755426640150,-480.0,0.0001964,2]
[379864175,1755426640159,-460.71724109,0.0001964,2]
[379864176,1755426640169,-480.0,0.0001964,2]
[379864177,1755426640179,-460.0,0.0001964,2]
[379864178,1755426640336,-480.0,0.0001964,2]
[379864179,1755426640346,-480.0,0.0001964,2]
[379864180,1755426640356,-480.0,0.0001964,2]
[379864181,1755426640366,-558.93830976,0.0001964,2]
[379864182,1755426640375,-480.0,0.0001964,2]
[379864183,1755426640385,-480.0,0.0001964,2]
[379864185,1755426640394,-480.0,0.0001964,2]
[379864187,1755426640403,-480.0,0.0001964,2]
[379864189,1755426640412,-460.0,0.0001964,2]
[379864191,1755426640421,-480.0,0.0001964,2]
[379864193,1755426640431,-480.0,0.0001964,2]
[379864194,1755426640441,-480.0,0.0001964,2]
[379864196,1755426640450,-500.0,0.0001964,2]
[379864198,1755426640459,-423.47,0.0001964,2]
[379864200,1755426640468,-461.98510558,0.0001964,2]
[379864202,1755426640477,-480.0,0.0001964,2]
[379864204,1755426640487,-480.0,0.0001964,2]
[379864206,1755426640496,-500.0,0.0001964,2]
[379864208,1755426640506,-500.0,0.0001964,2]
[379864210,1755426640515,-480.0,0.0001964,2]
[379864212,1755426640524,-480.0,0.0001964,2]
[379864214,1755426640534,-480.0,0.0001964,2]
[379864217,1755426640544,-480.0,0.0001964,2]
[379864219,1755426640553,-480.0,0.0001964,2]
[379864221,1755426640563,-480.0,0.0001964,2]
[379864223,1755426640572,-224.46735995,0.0001964,2]
[379864225,1755426640581,-480.0,0.0001964,2]
[379864227,1755426640591,-534.44213534,0.0001964,2]
[379864229,1755426640601,-480.0,0.0001964,2]
[379864231,1755426640610,-480.0,0.0001964,2]
[379864233,1755426640619,-480.0,0.0001964,2]